Cogmind - Beta 13 @@@ ROGUE MODE // 2024.06.14 @ 14:15:43 Player: H3-RMN Result: Destroyed by G-47 Trooper with Particle Gun Performance ------------- Evolutions (2) 1000 Regions Visited (6) 1200 Robots Destroyed (78) 390 Value Destroyed (2267) 2267 Prototype IDs (42) 840 Alien Tech Used (0) 0 Bonus (452) 452 TOTAL SCORE: 6149 Bonus ------- High Alert Combat Kills 136 Follower Combat Kills 116 Entered Garrisons 200 Cogmind --------- Core Integrity 0/550 Matter 291/300 Energy 15/100 System Corruption 3% Temperature Cool (9) Movement Flying (40) Location -8/Garrison Parts ------- > --- POWER (1) -------- Backup Power I > --- PROPULSION (4) --- Gyrokinetic Inverter Nuclear Pulse Array > --- UTILITY (4) ------ Advanced Cooling System > --- WEAPON (2) ------- Shock Bomb Launcher > --- INVENTORY (5) ---- Experimental Sensor Array Improved Signal Interpreter Improved Datajack Improved Plasma Cutter Ripper Peak State ------------ > --- POWER ------------ Improved Ion Engine > --- PROPULSION ------- Light Treads Armored Treads Wheel Gyrokinetic Inverter > --- UTILITY ---------- Advanced Cooling System High-capacity Storage Unit Hardened Medium Armor Plating Hacking Suite > --- WEAPON ----------- Tesla Rifle Variable Charge Gun > --- INVENTORY -------- Backup Power I Nuclear Pulse Array Large Storage Unit Experimental Sensor Array Improved Signal Interpreter 0b10 Alert Chip Hardened Medium Armor Plating Hardened Medium Armor Plating Supersonic Drone Bay Shock Bomb Launcher Improved Datajack Improved Plasma Cutter Ripper Blade Trap Blade Trap Blade Trap Blade Trap Deploy-a-Sentry [Rating: 45] Favorites ----------- Power Improved Ion Engine Engine Improved Ion Engine Power Core Light Nuclear Core Propulsion Armored Wheel Treads Light Treads Leg Improved Carbon-fiber Leg Wheel Armored Wheel Hover Unit Gyrokinetic Inverter Flight Unit Nuclear Pulse Array Utility High-capacity Storage Unit Device Advanced Heat Sink Storage High-capacity Storage Unit Hackware Hacking Suite Protection Hardened Light Armor Plating Weapon Plasma Cannon Energy Gun Medium Laser Energy Cannon Plasma Cannon Ballistic Gun Light Assault Rifle Ballistic Cannon Light Cannon Launcher Shock Bomb Launcher Special Weapon Improved Plasma Cutter Slashing Weapon Ripper Special Melee Weapon Datajack Build | -11 -10 -10 -10 -9 -8 -8 ------- Run | Yrd Mat Min Exi Min Mat Gar Slots Evolved 4 | . . . . . 4 . Power . | . . . . . . . Propulsion 2 | . . . . . 2 . Utility 2 | . . . . . 2 . Weapon . | . . . . . . . Parts Attached 80 | 7 9 2 5 6 30 21 Power 9 | 1 2 . . 1 3 2 Engine 8 | 1 2 . . 1 2 2 Core 1 | . . . . . 1 . Reactor . | . . . . . . . Propulsion 32 | 2 2 2 2 1 13 10 Treads 12 | 1 . 2 . 1 5 3 Leg 5 | . . . . . 2 3 Wheel 9 | 1 2 . 2 . 4 . Hover 4 | . . . . . 1 3 Flight 2 | . . . . . 1 1 Utility 18 | 2 2 . 2 1 7 4 Device 5 | 1 1 . . . 1 2 Storage 6 | 1 1 . 2 . 1 1 Processor . | . . . . . . . Hackware 1 | . . . . . 1 . Protection 6 | . . . . 1 4 1 Artifact . | . . . . . . . Weapon 21 | 2 3 . 1 3 7 5 Energy Gun 7 | 1 . . . . 4 2 Energy Cannon 5 | . 1 . . 1 3 . Ballistic Gun 3 | 1 1 . . . . 1 Ballistic Cannon 1 | . 1 . . . . . Launcher 1 | . . . . . . 1 Special Weapon 2 | . . . . 1 . 1 Impact Weapon . | . . . . . . . Slashing Weapon 1 | . . . . 1 . . Piercing Weapon . | . . . . . . . Special Melee Weapon 1 | . . . 1 . . . Unidentified Prototypes 3 | . . . . . 3 . Parts Lost 14 | . 3 . . . 3 8 Power 1 | . . . . . . 1 Propulsion 9 | . 1 . . . 3 5 Utility 3 | . 1 . . . . 2 Weapon 1 | . 1 . . . . . Highest Loss Streak 4 | . 2 . . . 1 4 To Critical Strikes . | . . . . . . . Average Slot Usage (%) 90 | . 100 34 54 94 95 93 Engine 9 | . 14 1 . 11 7 8 Treads 12 | . 14 24 3 12 13 12 Leg 1 | . . . . . 3 3 Wheel 15 | . 14 1 24 15 17 9 Device 7 | . 14 1 . . 6 9 Storage 11 | . 14 1 11 14 9 9 Hackware 3 | . . . . . 8 8 Protection 5 | . . . . 14 8 8 Energy Gun 3 | . 5 . . . 2 12 Energy Cannon 8 | . 7 1 . 13 12 2 Ballistic Gun 3 | . 11 1 . . . 1 Slashing Weapon 2 | . . . . 10 2 . Special Melee Weapon 1 | . . . 13 . . . Naked Turns 1 | . . 1 . . . . Heaviest Build 201 | 12 53 52 201 35 73 73 Greatest Support 33 | 20 16 10 24 24 24 33 Greatest Overweight (x) 8 | 1 5 5 8 2 6 6 Average Overweight (x) 3 | . 4 . 4 1 2 5 Largest Inventory Capacity 35 | 8 20 20 35 15 20 20 Average Capacity 19 | 7 19 6 29 15 18 19 Most Carried 20 | 8 20 20 14 15 20 20 Average Carried 15 | 4 17 6 8 14 17 19 Final Capacity 35 | 8 20 5 35 15 20 5 Final Carried 20 | 8 20 5 14 15 20 5 Class Distribution -------------------- 76% | Mutant 13% | Scavenger-Mutant 9% | Hauler-Mutant Dominant Class ---------------- Mutant | -10/Materials Mutant | -10/Mines Hauler-Mutant | -10/Exiles Mutant | -9/Mines Mutant | -8/Materials Scavenger-Mutant | -8/Garrison Resources | -11 -10 -10 -10 -9 -8 -8 ----------- Run | Yrd Mat Min Exi Min Mat Gar Matter Collected 1482 | 277 398 . 70 199 300 238 Remotely . | . . . . . . . Salvage Created 2885 | 107 721 . . 106 1354 597 Parts 170 | 6 55 . . 14 69 26 Haulers Intercepted 2 | . 2 . . . . . Recyclers Shooed 1 | . . . . . 1 . Parts Field Recycled . | . . . . . . . Retrieved Matter . | . . . . . . . Parts Self-Destructed . | . . . . . . . Prevented . | . . . . . . . Kills | -11 -10 -10 -10 -9 -8 -8 ------- Run | Yrd Mat Min Exi Min Mat Gar Combat Hostiles Destroyed 59 | . 16 . . 4 26 13 Melee 10 | . . . . . 10 . Guns 22 | . 14 . . . . 8 Cannons 19 | . 2 . . 3 14 . AOE 5 | . . . . 1 . 4 Classes Destroyed 12 | 2 7 . . . 1 2 Worker 1 | . 1 . . . . . Builder 5 | . 1 . . 2 2 . Tunneler 3 | 2 . . . 1 . . Hauler 2 | . 2 . . . . . Recycler 2 | 1 . . . . 1 . Operator 5 | . 3 . . . 2 . Watcher 1 | . 1 . . . . . Swarmer 14 | . 3 . . 3 5 3 Grunt 34 | . 13 . . 1 15 5 Brawler 1 | . . . . . . 1 Duelist 2 | . . . . . . 2 Sentry 8 | . . . . . 6 2 Best Kill Streak 6 | 3 6 . . 3 5 3 Combat Bots Only 4 | . 4 . . 3 4 3 Max Kills in Single Turn 2 | 1 1 . . 1 1 2 Gunslinging 1 | . . . . . . 1 Exploded 2 | . . . . 1 . 2 Melee 1 | . . . . . 1 . Uniques/NPCs Destroyed . | . . . . . . . Combat | -11 -10 -10 -10 -9 -8 -8 -------- Run | Yrd Mat Min Exi Min Mat Gar Hostile Shots Fired 365 | . 69 28 . 12 130 126 Missed 101 | . 19 11 . 4 35 32 Damage Taken 3728 | . 578 306 . 62 1360 1422 Core 735 | . 77 97 . . 167 394 Absorbed by Shields 43 | . . . . . . 43 Regen/Repaired (Parts) 217 | . . . . . 217 . Core Remaining (%) 65 | 100 . . . 30 . . Volleys Fired 163 | 7 61 . . 10 51 34 Largest 2 | 2 2 . . 1 2 2 Hottest 160 | 70 85 . . 56 160 160 Shots Fired 307 | 14 121 . . 11 101 60 Gun 162 | 14 86 . . . 6 56 Cannon 143 | . 35 . . 11 95 2 Launcher 2 | . . . . . . 2 Special . | . . . . . . . Kinetic 77 | 7 60 . . . . 10 Thermal 199 | 7 61 . . . 101 30 Explosive . | . . . . . . . Electromagnetic 31 | . . . . 11 . 20 Robot Hit Streak 20 | 4 10 . . 8 13 20 Robot Miss Streak 3 | 1 3 . . 2 3 1 Penetration Max . | . . . . . . . Secondary Targets 1 | . . . . . . 1 Max Gunslinging Chain 1 | . . . . . . 1 Shots Hit Robots 231 | 8 80 . 4 9 82 48 Core Hits 109 | 4 44 . . 5 37 19 Critical Kills 2 | . . . . . 1 1 Critical Parts Destroyed 1 | . 1 . . . . . Critical Strikes 13 | 1 7 . . . 4 1 Burn 6 | 1 5 . . . . . Meltdown 1 | . . . . . 1 . Destroy 2 | . 1 . . . . 1 Blast 1 | . 1 . . . . . Sever 3 | . . . . . 3 . Melee Attacks 38 | . . . 4 2 32 . Impact . | . . . . . . . Slashing 34 | . . . . 2 32 . Piercing . | . . . . . . . Sneak Attacks 8 | . . . 4 2 2 . Combat Hostiles 2 | . . . . . 2 . Follow-up Attacks . | . . . . . . . Damage Inflicted 5389 | 104 1108 . . 344 2579 1254 Guns 1902 | 104 647 . . . 84 1067 Cannons 2185 | . 461 . . 149 1575 . Explosions 221 | . . . . 34 . 187 Melee 1081 | . . . . 161 920 . Ramming . | . . . . . . . Kinetic 725 | 41 494 . . . . 190 Thermal 2975 | 63 614 . . 34 1659 605 Explosive . | . . . . . . . Electromagnetic 608 | . . . . 149 . 459 Impact . | . . . . . . . Slashing 1081 | . . . . 161 920 . Piercing . | . . . . . . . Highest Corruption 3 | . 1 1 1 1 3 3 Average Corruption 1 | . 1 1 1 1 2 3 Corruption Purged . | . . . . . . . Corruption Blocked . | . . . . . . . Effects 29 | . 5 . 3 5 2 14 Message Errors 11 | . 3 . 2 2 1 3 Matter Fused 3 | . . . . 1 . 2 Heat Flow Errors 3 | . . . . 1 . 2 Energy Discharges 4 | . 1 . . . . 3 Parts Rejected 1 | . . . . . . 1 Data Loss (minor) 4 | . 1 . 1 . . 2 Misfires 2 | . . . . 1 . 1 Weapon Failures 1 | . . . . . 1 . Overload Shots . | . . . . . . . Overflow Damage 161 | . 13 . . 105 37 6 Projectiles 41 | . 13 . . . 28 . Explosions 20 | . . . . 14 . 6 Melee 100 | . . . . 91 9 . Knockbacks 4 | . 4 . . . . . Impact . | . . . . . . . Kinetic 3 | . 3 . . . . . Secondary 1 | . 1 . . . . . Self-Inflicted Damage 33 | . . . . . . 33 Shots 1 | . . . . . . 1 Rammed . | . . . . . . . Targets Rammed . | . . . . . . . Kicked . | . . . . . . . Crushed . | . . . . . . . Highest Temperature 390 | 50 135 . . 172 390 115 Average Temperature 66 | 25 39 . . 61 105 21 Received Heat Transfer 1275 | . 285 . . . 657 333 Siege Activations . | . . . . . . . Robots Corrupted 1 | . . . . . . 1 Combat Hostiles 1 | . . . . . . 1 Parts Fried 3 | . . . . 1 . 2 Impact Corruptions . | . . . . . . . Robots Melted 2 | . . . . . 2 . Combat Hostiles 2 | . . . . . 2 . Parts Melted 12 | . 4 . . . 7 1 Heat Transferred 6604 | 259 2035 . . 50 3285 975 Parts Sabotaged . | . . . . . . . Parts Stolen . | . . . . . . . Parts Stripped . | . . . . . . . Power Chain Reactions 2 | . . . . 1 . 1 Alert | -11 -10 -10 -10 -9 -8 -8 ------- Run | Yrd Mat Min Exi Min Mat Gar Peak Influence 607 | 15 348 135 . 175 558 607 Initial 362 | . 9 85 . . 1 362 Average 213 | 6 224 106 . 42 222 453 Maximum Alert Level 2 | . 1 . . . 2 2 Low Security (%) 51 | 100 41 100 . 100 47 . Level 1 35 | . 58 . . . 36 38 Level 2 13 | . . . . . 16 61 Level 3 . | . . . . . . . Level 4 . | . . . . . . . Level 5 . | . . . . . . . High Security . | . . . . . . . Max Security . | . . . . . . . Squads Dispatched 8 | . 5 . . . 3 . Investigation 3 | . 2 . . . 1 . Extermination . | . . . . . . . Reinforcement 5 | . 3 . . . 2 . Assault . | . . . . . . . Garrison . | . . . . . . . Intercept . | . . . . . . . Searches Triggered . | . . . . . . . Construction Impeded . | . . . . . . . Haulers Reinforced . | . . . . . . . Active Scanning Responses . | . . . . . . . Cargo Convoy Interrupts . | . . . . . . . Stealth | -11 -10 -10 -10 -9 -8 -8 --------- Run | Yrd Mat Min Exi Min Mat Gar Distress Signals 3 | . 1 . . . 2 . Communications Jammed . | . . . . . . . Distress Signals . | . . . . . . . Times Spotted 118 | . 34 23 . 7 37 17 Peak Tracking Total 19 | . 4 19 . 3 4 6 Tactical Retreats 5 | . 1 3 . 1 . . Traps | -11 -10 -10 -10 -9 -8 -8 ------- Run | Yrd Mat Min Exi Min Mat Gar Traps Triggered 5 | . 1 . . . 2 2 Indirectly 1 | . . . . . . 1 Trap Hack Attempts . | . . . . . . . Triggered . | . . . . . . . Disarmed . | . . . . . . . Reprogrammed . | . . . . . . . Reused . | . . . . . . . Traps Extracted . | . . . . . . . Installed 1 | . . . . . 1 . Triggered . | . . . . . . . Most Traps Carried 5 | . . . . 5 5 4 Machines | -11 -10 -10 -10 -9 -8 -8 ---------- Run | Yrd Mat Min Exi Min Mat Gar Machines Disabled 3 | . 1 . . . 2 . Max in Single Turn 1 | . 1 . . . 1 . Garrison Relay 1 | . . . . . . 1 Machines Repaired . | . . . . . . . Machines Dismantled 1 | . . . . . . 1 Machines Sabotaged . | . . . . . . . Overloaded Fab Kills . | . . . . . . . Hacking | -11 -10 -10 -10 -9 -8 -8 --------- Run | Yrd Mat Min Exi Min Mat Gar Machines Accessed 16 | . 5 . 2 . 8 1 Terminals 9 | . 3 . . . 5 1 Fabricators . | . . . . . . . Repair Stations 1 | . . . . . 1 . Recycling Units 2 | . 2 . . . . . Scanalyzers 1 | . . . . . 1 . Garrison Access 1 | . . . . . 1 . Total Hacks 44 | . 13 . 5 . 23 3 Successful 27 | . 7 . 5 . 13 2 Failed 17 | . 6 . . . 10 1 Catastrophic 5 | . 2 . . . 2 1 Database Lockouts . | . . . . . . . Manual 17 | . 9 . 1 . 5 2 Terminals 24 | . 9 . . . 12 3 Fabricators . | . . . . . . . Repair Stations 7 | . . . . . 7 . Recycling Units 4 | . 4 . . . . . Scanalyzers 3 | . . . . . 3 . Garrison Access 1 | . . . . . 1 . Terminal Hacks 11 | . 2 . 5 . 3 1 Record 4 | . . . 4 . . . Part Schematic 2 | . 1 . . . 1 . Robot Analysis 2 | . 1 . . . 1 . Prototype ID Bank 1 | . . . . . 1 . Garrison Registry 1 | . . . . . . 1 Derelict Proto ID Bank 1 | . . . 1 . . . Fabricator Hacks . | . . . . . . . Repair Station Hacks 6 | . . . . . 6 . Scan Component 3 | . . . . . 3 . Repair 2 | . . . . . 2 . Refit 1 | . . . . . 1 . Recycling Unit Hacks 2 | . 2 . . . . . Report Inventory 2 | . 2 . . . . . Scanalyzer 2 | . . . . . 2 . Insert Component 1 | . . . . . 1 . Analyze 1 | . . . . . 1 . Garrison Access Hacks 1 | . . . . . 1 . Unlock Access 1 | . . . . . 1 . Unauthorized Hacks 5 | . 3 . . . 1 1 Terminals 3 | . 1 . . . 1 1 Assimilate 1 | . 1 . . . . . Botnet 2 | . . . . . 1 1 Fabricators . | . . . . . . . Repair Stations . | . . . . . . . Recycling Units 2 | . 2 . . . . . Tunnel 2 | . 2 . . . . . Scanalyzers . | . . . . . . . Garrison Access . | . . . . . . . Data Cores Recovered . | . . . . . . . Used . | . . . . . . . Hacking Detections 13 | . 5 . . . 7 1 Full Trace Events 1 | . . . . . 1 . Feedback Events . | . . . . . . . Feedback Blocked . | . . . . . . . Robot Schematics Acquired . | . . . . . . . Robots Built . | . . . . . . . Authchips . | . . . . . . . Time . | . . . . . . . Total Robot Build Rating . | . . . . . . . Part Schematics Acquired 3 | . 1 . . . 2 . Parts Built . | . . . . . . . Authchips . | . . . . . . . Time . | . . . . . . . Total Part Build Rating . | . . . . . . . Parts Repaired 2 | . . . . . 2 . Time 64 | . . . . . 64 . Parts Recycled . | . . . . . . . Recycled Matter . | . . . . . . . Retrieved Matter . | . . . . . . . Retrieved Components . | . . . . . . . Parts Scanalyzed 1 | . . . . . 1 . Part Schematics Acquired 1 | . . . . . 1 . Parts Damaged . | . . . . . . . Bothacking | -11 -10 -10 -10 -9 -8 -8 ------------ Run | Yrd Mat Min Exi Min Mat Gar Used RIF Installer . | . . . . . . . Robots Hacked 4 | . . . 4 . . . Non-combat 3 | . . . 3 . . . Combat 1 | . . . 1 . . . Robot Hacks Applied 4 | . . . 4 . . . parse_system 4 | . . . 4 . . . Relay Couplers Released 3 | . . . . . . 3 Machine Destruction 3 | . . . . . . 3 Fabnet Peak Effective % . | . . . . . . . Robots Rewired . | . . . . . . . Allies Hacked . | . . . . . . . Hacks Repelled . | . . . . . . . Allies | -11 -10 -10 -10 -9 -8 -8 -------- Run | Yrd Mat Min Exi Min Mat Gar Total Allies 1 | . 1 . . . . . Largest Group 1 | . 1 1 . . . . Highest-Rated Group 10 | . 10 10 . . . . Highest-Rated Ally 10 | . 10 10 . . . . Total Orders . | . . . . . . . Ally Attacks 26 | . . . . 8 . 18 Total Damage 1380 | . . . . 422 . 958 Kills 3 | . . . . 2 . 1 Allies Corrupted 1 | . . 1 . . . . Allies Melted . | . . . . . . . Turrets Deployed 2 | . . . . 1 . 1 Intel | -11 -10 -10 -10 -9 -8 -8 ------- Run | Yrd Mat Min Exi Min Mat Gar Robot Analysis Total 2 | . 1 . . . 1 . Derelict Logs Recovered 2 | . . 1 . 1 . . Drone Launches . | . . . . . . . Drone Recoveries . | . . . . . . . Exploration | -11 -10 -10 -10 -9 -8 -8 ------------- Run | Yrd Mat Min Exi Min Mat Gar Turns Passed 4783 | 117 1410 88 604 777 1197 590 Spaces Moved 2832 | 84 761 151 413 614 596 213 Core 295 | 5 . 145 145 . . . Treads 4 | 2 . . . . 2 . Legs 4 | . . . . . . 4 Wheels 2516 | 77 761 6 268 614 594 196 Hover 2 | . . . . . . 2 Flight 11 | . . . . . . 11 Fastest Speed 40 | 50 95 50 50 90 105 40 Average Speed 129 | 92 147 54 139 118 121 164 Slowest Speed 340 | 160 155 155 210 120 250 340 Overloaded Moves . | . . . . . . . Propulsion Burnouts . | . . . . . . . Robots Hopped . | . . . . . . . Cave-ins Triggered . | . . . . . . . Exploration Rate (%) 57 | 5 90 55 71 93 62 25 Regions Visited 6 Branch Regions 3 Pre-discovered Areas 4 | . 2 . 1 1 . . Known Exits Taken 1 | . . . . . 1 . Unknown Exits Taken 5 | 1 1 1 1 1 . . Scrap Searched 2 | . . . . 2 . . Spaces Dug . | . . . . . . . Terrain Destroyed 32 | . . . . 3 26 3 Melee . | . . . . . . . Projectile 26 | . . . . . 26 . AOE 6 | . . . . 3 . 3 Terrain Rammed . | . . . . . . . Walls Destroyed . | . . . . . . . Machines Disabled . | . . . . . . . Actions | -11 -10 -10 -10 -9 -8 -8 --------- Run | Yrd Mat Min Exi Min Mat Gar Total 3615 | 106 938 157 438 654 926 396 Wait 339 | 1 75 . . 7 168 88 Move 2827 | 83 760 150 412 613 596 213 Hop . | . . . . . . . Pick Up 84 | 8 22 2 16 8 18 10 Fast Attach 44 | 7 1 2 1 4 18 11 Attach 14 | . 3 . 2 1 3 5 Detach 2 | . . . . 1 1 . Swap 22 | . 5 . 2 1 9 5 Drop 74 | . 11 3 1 7 29 23 Fire 163 | 7 61 . . 10 51 34 Melee 38 | . . . 4 2 32 . Ram . | . . . . . . . Kick . | . . . . . . . Crush . | . . . . . . . Escape Stasis 4 | . . . . . . 4 Rewire . | . . . . . . . Trap 1 | . . . . . 1 . Miscellaneous 3 | . . . . . . 3 Route ------- -11/Scrapyard -10/Materials (discovered 5 exits: [*Mat x3] / [*Min x2]) -10/Mines -10/Exiles -9/Mines (discovered 2 exits: *Mat x2) -8/Materials (discovered 3 exits: [*Fac x2] / Gar) -8/Garrison (discovered 3 exits: [Mat x3]) History --------- Turn | Location | Event 2 | -11/Scrapyard | Met Revision 17 15 | -11/Scrapyard | Discovered new exit (range 16) 118 | -11/Scrapyard | Entered Materials 306 | -10/Materials | Build established: Mutant 404 | -10/Materials | Discovered new exit (range 4) 557 | -10/Materials | Discovered new exit (range 8) 803 | -10/Materials | Discovered new exit (range 6) 1104 | -10/Materials | Discovered new exit (range 16) 1421 | -10/Materials | Discovered new exit (range 3) 1528 | -10/Materials | Entered Mines 1528 | -10/Mines | Accompanied by 1 ally 1536 | -10/Mines | Assembled infested the area 1538 | -10/Mines | Released all parts (7) 1548 | -10/Mines | Core integrity fell below 50% 1593 | -10/Mines | Learned Materials garrison access intel 1614 | -10/Mines | Deemed a non-threat by the Exiles lab entrance 1614 | -10/Mines | Discovered new exit (range 5) 1616 | -10/Mines | Entered Exiles 1629 | -10/Exiles | Met 8R-AWN 1640 | -10/Exiles | Met EX-HEX 1655 | -10/Exiles | Met EX-BIN 1673 | -10/Exiles | Met EX-DEC 1675 | -10/Exiles | Learned location of Zion (-7) 1912 | -10/Exiles | Opened EX-Vault 1923 | -10/Exiles | Found Deploy-a-Sentry 1926 | -10/Exiles | Found Deploy-a-Sentry 1929 | -10/Exiles | Found Deploy-a-Sentry 1936 | -10/Exiles | Found 0b10 Alert Chip 1945 | -10/Exiles | Found Supersonic Drone Bay 1989 | -10/Exiles | Build established: Hauler-Mutant 1993 | -10/Exiles | Warned to stay clear of 0b10 Research branches 2208 | -10/Exiles | Discovered new exit (range 14) 2220 | -10/Exiles | Stole three prototypes: 0b10 Alert Chip, Supersonic Drone Bay, Deploy-a-Sentry 2220 | -10/Exiles | Entered Mines 2286 | -9/Mines | Found a hidden stash of uninstalled traps 2297 | -9/Mines | DAS Turret deployed 2435 | -9/Mines | A weapon hastily lodged in a ceiling crevice suddenly fell to the ground 2478 | -9/Mines | Build established: Mutant 2575 | -9/Mines | Discovered new exit (range 8) 2751 | -9/Mines | Found a damaged Exp. Sensor Array with a note attached 2754 | -9/Mines | Found Prototype Device 2935 | -9/Mines | Discovered new exit (range 11) 2997 | -9/Mines | Entered Materials 2997 | -8/Materials | Evolved 4 slots: Propulsion x2, Utility x2 2998 | -8/Materials | Loaded intel: 1 garrison access location 3511 | -8/Materials | Repaired Lgt. Armor Plating 3551 | -8/Materials | Repaired Arm. Treads 3588 | -8/Materials | Discovered new exit (range 5) 4170 | -8/Materials | Discovered new exit (range 4) 4194 | -8/Materials | Identified exit to Garrison 4194 | -8/Materials | Entered Garrison 4286 | -8/Garrison | DAS Turret deployed 4314 | -8/Garrison | Spotted B-75 Beast 4355 | -8/Garrison | Core integrity fell below 50% 4360 | -8/Garrison | Allies destroyed B-75 Beast 4374 | -8/Garrison | Lost 4 parts (1p2n1u) 4487 | -8/Garrison | Core integrity fell below 20% 4522 | -8/Garrison | Triggered checkpoint 4567 | -8/Garrison | Discovered new exit (range 74) 4567 | -8/Garrison | Discovered new exit (range 45) 4567 | -8/Garrison | Discovered new exit (range 78) 4588 | -8/Garrison | Garrison Relay disabled 4704 | -8/Garrison | Triggered checkpoint 4784 | -8/Garrison | Destroyed by G-47 Trooper with Particle Gun Last Messages --------------- 04754_ Dropped Aluminum Leg. 04755_ Dropped Lgt. Treads. 04756_ Dropped Imp. Ion Engine. 04758_ Acquired 30 matter. 04761_ Acquired Gyrokinetic Inverter. 04762_ System corrupted: Heat flow error (+171). 04762_ Acquired 10 matter. 04763_ Dropped Hrd. Medium Armor Plating. 04767_ Acquired Blade Trap. 04769_ Acquired 0b10 Alert Chip. 04772_ Acquired 6 matter. 04772_ S-10 Pest destroyed. 04774_ Hacking Suite destroyed. Garrison Door activated. 04778_ System corrupted: Component data lost. 04779_ Flight Unit fried. 04779_ S-10 Pest destroyed. 04781_ Dropped Lrg. Storage Unit. 04783_ Dropped Blade Trap. 04783_ Acquired Ripper. Map ----- +----------------------------------------------------+ | ??????????# ####%/ ###????????????# #???????????? | | #####???### * #????????????# #???????????? | | #???#"# ###"""## #????????????# #???????????? | | #???# ! #?# # ## #????????????# #???????????? | | #???# ! #?### ## #????????????# #???????????? | | ## #???# ! #???# ## #????????????# #???????????? | | ?# #???#"# #???# ## #????????????# #???????????? | | ?# #???###+##### ## #????????????# #???????????? | | ?# #?????# ## #????????????# #???????????? | | ## #?????# ######## #????????????# #???????????? | | ## #######+######## #######??????#++############# | | ; * #??????# | | ; = %%= #??????# | | ###############*%###+#### #??????# ##########+## | | #?????????????# #?# #??# #??????# #????????# #? | | #?????????????# #?# #### #??????# #????????# #? | | #?????????????# #?# + #??????# #????????# ## | | ??????????????# ### #### #??????# #????????# | | ??????????????# + #??# ######## ##???????# ## | | ??????????????# ### #??#! ## ## T#??????##+## | | ??????????????# #?# #?##[*##g g ##%[##??????# # | | ??????????????# ###+###%![ = ########"""# | | ??????????????# [!%![!==s% | | ??????????????# [[& ! %^^^ | | ??????????????##########!==##^^ ^## ############ | | ?????????????????????###=@&## ## ###????????# | | ?????????????????????# &&!& " #????????# | | ?????????????????????# " #????????? | | ?????????????????????# " ####?????? | | ?????????????????????# " + #?????? | | ?????????????????????### ## ## #### #?????? | | #????????????????????# # ## ## #??# #?????? | | #????????????????????# # #### ####### | | #????????????????????# + + # | | #????????????????????# # ########## # | | #????????????????????# # ##""""## #????????# | | ###??????????????????# + ## ## #????????# # | | " ####???????????????# # ######## #????????# # | | " + #???????????????# #^^ #??????# #????????# # | | " ## #???????????????# + #??????# #????????# # | | #### #???????????????# # ^^#??????# ########## # | | #??# #???????????????# #^ #??????# + # | | ####+#################+# ^ #??????# ###### ### # | | ^^ #??????# #????# #?# # | | ^^ #??????# #????# #?# # | | ### #??????# ###### ###+# | | ??# ####+#### ###########??????# | | ??# #??# #??# #????????????????# | | ??# #??# #??# #????????????????# | | ??# #??# #### #????????????????########## ###+# | +----------------------------------------------------+ Best States ------------- Heat Dissipation 62 Energy Generation 16 Energy Capacity 290 Matter Stores 300 Matter Capacity 300 Sight Range 16 Terrain Scan Density 10 Armor Coverage 225 Evasion (%) 50 Recoil Reduction 2 Offensive Hacking 10 Item Schematics ----------------- Hcp. Storage Unit | -10/Materials | Hacked Humpback | -8/Materials | Scanalyzed Hacking Suite | -8/Materials | Hacked Robot Schematics ------------------ None Fabricated ------------ Nothing Alien Tech Used ----------------- None Achievements -------------- None Challenges ------------ None Game ------ Seed AbsorptionMachineBlade Manual? 0 Play Time 00:49:27 Cumulative 417.9 hours Start 2024.06.14 @ 12:40:32 End 2024.06.14 @ 14:15:43 Sessions 1 Manual Loads 0 Difficulty Rogue Special Mode None Game No. 162 Rogue 159 Adventurer 3 Explorer 0 Win Type - Total 7 Types 4/1/0/1/0/1/0/0/0 Lore% 78 Gallery% 82 Achievement% 86 Wizard Run 0 Options --------- Layout 2 ASCII 0 Keyboard 0 Movement Numpad Keybinds 0 Fullscreen 2 Font 24/Smallcaps Map View 50x44 Zoom Use 0% Tactical HUD 1 Map Filters NONE Filters NONE Steam 1 RUN: b0646b57-becd-4b3a-82fe-00fa70cc6ed6